bitfinex-derivatives/quotes_SOLF0:USTF0_20260314
["timestamp","ask_amount","ask_price","bid_price","bid_amount"]
[1773489142620,9.71451435,86.926,86.882,10.357]
[1773489146223,9.31711751,86.925,86.882,10.357]
[1773489146422,9.71451435,86.926,86.882,10.357]
[1773489146622,9.31711751,86.925,86.882,10.357]
[1773489146822,9.71451435,86.926,86.882,10.357]
[1773489147023,9.71695839,86.924,86.882,10.357]
[1773489148222,9.32278166,86.923,86.882,10.357]
[1773489148423,9.7200814,86.922,86.882,10.357]
[1773489159324,9.7200814,86.922,86.889,10.356]
[1773489159525,9.7200814,86.922,86.88,3.12637748]
[1773489159526,9.71249336,86.944,86.88,3.12637748]
[1773489159825,28.62818492,87.008,86.88,3.12637748]
[1773489159826,9.71249336,86.942,86.88,3.12637748]
[1773489160023,9.71249336,86.94,86.88,3.12637748]
[1773489160218,9.71249336,86.934,86.883,10.357]
[1773489160423,9.32208818,86.933,86.883,10.357]
[1773489160629,9.71026332,86.931,86.883,10.357]
[1773489160827,9.71026332,86.929,86.883,10.357]
[1773489161522,9.71026332,86.929,86.89,3.12637748]
[1773489162029,9.71026332,86.929,86.88,3.12637748]
[1773489162637,9.71026332,86.929,86.887,10.356]
[1773489164427,9.71026332,86.929,86.892,10.356]
[1773489170839,9.71026332,86.929,86.884,10.357]
[1773489171037,9.59487088,86.927,86.884,10.357]
[1773489171231,9.33626231,86.926,86.884,10.357]
[1773489171436,9.59487088,86.925,86.884,10.357]
[1773489172141,9.59487088,86.925,86.88,3.12637748]
[1773489172342,9.59487088,86.925,86.876,10.358]
[1773489172543,9.59510532,86.923,86.876,10.358]
[1773489172744,9.59510532,86.921,86.876,10.358]
[1773489173044,9.59510532,86.933,86.89,3.12637748]
[1773489173243,9.59510532,86.971,86.92,3.12637748]
[1773489173438,18.91969891,86.97,86.93,3.12637748]
[1773489173643,9.33251676,86.969,86.93,3.12637748]
[1773489173842,9.33251676,86.968,86.93,3.12637748]
[1773489174049,9.33251676,86.967,86.93,3.12637748]
[1773489174243,9.58718215,86.969,86.93,3.12637748]
[1773489175148,9.58718215,86.969,86.92,13.47837748]
[1773489176644,9.58718215,86.969,86.92,10.352]
[1773489177148,9.58718215,86.969,86.92,13.47837748]
[1773489178347,9.55445151,86.967,86.911,10.353]
[1773489180051,9.55445151,86.967,86.92,3.12637748]
[1773489191352,9.55445151,86.967,86.93,3.12637748]
[1773489191753,9.55445151,86.967,86.921,10.352]
[1773489194562,9.55445151,86.967,86.93,3.12637748]
[1773489196666,9.55445151,86.967,86.931,10.351]
[1773489197666,9.55445151,86.967,86.94,3.12637748]
[1773489200865,9.55445151,86.967,86.931,10.351]
[1773489203168,9.55445151,86.967,86.938,10.35]
[1773489207173,9.52564734,86.977,86.92,3.12637748]
[1773489207479,9.52564734,86.977,86.93,3.12637748]
[1773489208173,9.52564734,86.977,86.92,3.12637748]
[1773489209381,9.52564734,86.977,86.93,3.12637748]
[1773489209569,9.52564734,86.977,86.931,10.351]
[1773489212275,9.30249161,86.976,86.931,10.351]
[1773489212481,9.51167675,86.975,86.931,10.351]
[1773489212781,9.51167675,86.975,86.922,10.352]
[1773489214276,9.30711633,86.974,86.93,10.351]
[1773489214479,9.5115485,86.973,86.93,10.351]
[1773489216384,9.50733965,86.971,86.93,10.351]
[1773489217185,9.32250102,86.97,86.93,10.351]
[1773489217384,9.50727143,86.968,86.93,10.351]
[1773489219080,9.50700247,86.966,86.918,10.352]
[1773489219288,9.32783485,86.965,86.918,10.352]
[1773489219480,9.50585144,86.963,86.918,10.352]
[1773489219885,9.50585144,86.961,86.918,10.352]
[1773489220083,9.50585144,86.959,86.918,10.352]
[1773489221985,9.50585144,86.959,86.921,10.352]
[1773489232487,9.50585144,86.959,86.913,10.353]
[1773489232688,9.50585144,86.959,86.867,34.52]
[1773489232689,9.50585144,86.959,86.852,34.52]
[1773489232893,9.48264856,86.957,86.89,3.12315597]
[1773489233190,9.48264856,86.955,86.89,3.12315597]
[1773489233390,9.32968554,86.954,86.89,3.12315597]
[1773489233592,9.48410319,86.949,86.903,10.354]
[1773489233791,9.48410319,86.947,86.903,10.354]
[1773489250000,9.48410319,86.947,86.9,3.12315597]
[1773489252013,9.48410319,86.947,86.902,10.354]
[1773489253516,9.48410319,86.947,86.9,3.12315597]
[1773489253517,10.349,86.946,86.9,3.12315597]
[1773489253714,9.31907976,86.945,86.9,3.12315597]
[1773489254514,9.31907976,86.945,86.894,10.355]
[1773489254719,9.31907976,86.945,86.9,3.12315597]
[1773489255019,10.349,86.944,86.9,3.12315597]
[1773489255317,10.349,86.944,86.894,10.355]
[1773489255318,9.3191055,86.943,86.894,10.355]
[1773489256417,9.3191055,86.943,86.9,3.12315597]
[1773489256619,9.3191055,86.943,86.901,10.355]
[1773489260816,9.3191055,86.943,86.851,20.721]
[1773489261021,9.33209184,86.939,86.88,3.12315597]
[1773489261222,9.33209184,86.939,86.87,3.12315597]
[1773489262523,9.33394696,86.934,86.883,10.357]
[1773489264424,9.3355941,86.929,86.883,10.357]
[1773489268726,9.32986467,86.919,86.883,10.357]
[1773489273131,9.32986467,86.919,86.875,10.358]
[1773489277236,9.32986467,86.919,86.884,10.357]
[1773489295845,9.32986467,86.919,86.89,3.12712232]
[1773489296642,9.2833425,86.933,86.9,3.12712232]
[1773489296845,9.2833425,86.953,86.92,3.12712232]
[1773489297337,9.2833425,86.953,86.91,3.12712232]
[1773489297941,9.28319762,86.944,86.91,3.12712232]
[1773489309357,9.28319762,86.944,86.902,10.354]
[1773489315070,9.34456005,86.929,86.87,3.12712232]
[1773489315269,9.34456005,86.929,86.866,36.22]
[1773489316572,9.34456005,86.929,86.875,10.358]
[1773489317874,9.3728862,86.927,86.875,10.358]
[1773489318262,9.3728862,86.919,86.875,10.358]
[1773489318573,9.37304181,86.909,86.866,46.579]
[1773489319170,31.46872075,86.949,86.842,6.90568064]
[1773489319376,31.46872075,86.949,86.799,32.234]
[1773489319377,3.12712232,86.89,86.83,8.73695818]
[1773489319571,45.56853914,86.948,86.739,202.34]
[1773489319572,3.12712232,86.86,86.803,8.7369495]
[1773489319772,3.12712232,86.87,86.816,8.7369495]
[1773489320166,36.22,86.898,86.82,3.12712232]
[1773489320372,3.12712232,86.89,86.831,8.7369495]
[1773489320570,3.12712232,86.88,86.831,8.7369495]
[1773489323474,3.12712232,86.89,86.831,8.7369495]
[1773489324170,10.354,86.905,86.833,8.66633555]
[1773489324373,3.12712232,86.89,86.833,8.66633555]
[1773489325580,3.12712232,86.89,86.835,8.67601057]
[1773489328475,3.12712232,86.88,86.835,8.67601057]
[1773489333785,3.13063424,86.88,86.835,8.67601057]
[1773489334383,3.13063424,86.89,86.835,8.67601057]
[1773489336286,10.355,86.895,86.835,8.67601057]
[1773489336287,3.13063424,86.88,86.835,8.67601057]
[1773489337683,10.77072075,86.934,86.807,36.24]
[1773489337684,3.13063424,86.92,86.861,8.66729006]
[1773489338286,3.13063424,86.9,86.861,8.66729006]
[1773489338487,3.13063424,86.91,86.861,8.66729006]
[1773489340387,3.13063424,86.91,86.862,8.66644373]
[1773489347293,10.354,86.909,86.862,8.66644373]
[1773489347490,3.13063424,86.9,86.862,8.66644373]
[1773489349293,13.48563424,86.9,86.844,8.67876971]
[1773489350100,3.13063424,86.89,86.844,8.67876971]
[1773489351099,3.13063424,86.88,86.844,8.67876971]
[1773489351400,3.13063424,86.89,86.844,8.67876971]
[1773489352501,13.48663424,86.89,86.844,8.67876971]
[1773489353997,13.48563424,86.9,86.847,10.361]
[1773489354202,10.355,86.9,86.851,8.6364781]
[1773489355304,9.53488826,86.899,86.851,8.6364781]
[1773489355498,10.355,86.9,86.851,8.6364781]
[1773489355499,10.355,86.9,86.851,18.9964781]
[1773489355705,9.53488826,86.899,86.852,8.67006316]
[1773489356003,10.355,86.9,86.852,8.67006316]
[1773489356205,9.53488775,86.899,86.852,8.67006316]
[1773489356403,9.53488775,86.898,86.852,8.67006316]
[1773489356604,9.53488775,86.897,86.852,8.67006316]
[1773489356801,10.355,86.9,86.852,8.67006316]
[1773489357005,9.53924214,86.899,86.855,8.668601]
[1773489357205,9.53924214,86.898,86.855,8.668601]
[1773489357405,9.53924214,86.897,86.855,8.668601]
[1773489357601,9.53924214,86.896,86.855,8.668601]
[1773489357802,10.354,86.908,86.855,8.668601]
[1773489357998,9.54417423,86.907,86.855,8.668601]
[1773489358201,9.54417423,86.906,86.855,8.668601]
[1773489358402,9.54417423,86.905,86.855,8.668601]
[1773489358606,9.54417423,86.904,86.855,8.668601]
[1773489358807,9.54417423,86.903,86.855,8.668601]
[1773489359006,9.54417423,86.902,86.855,8.668601]
[1773489359208,9.54417423,86.901,86.855,8.668601]
[1773489359508,9.54417423,86.9,86.855,8.668601]
[1773489359706,9.54417423,86.899,86.855,8.668601]
[1773489359899,9.54417423,86.898,86.855,8.668601]
[1773489360102,9.54417423,86.897,86.855,8.668601]
[1773489360303,9.54417423,86.896,86.855,8.668601]
[1773489360505,9.54417423,86.895,86.855,8.668601]
[1773489360705,9.54417423,86.894,86.855,8.668601]
[1773489360907,9.54417423,86.893,86.855,8.668601]
[1773489361102,3.13063424,86.9,86.855,8.668601]
[1773489361305,9.56348899,86.899,86.855,8.668601]
[1773489361503,10.355,86.896,86.855,8.668601]
[1773489361708,3.13063424,86.89,86.855,8.668601]
[1773489362306,9.56773552,86.889,86.855,8.668601]
[1773489362504,9.56773552,86.888,86.855,8.668601]
[1773489362705,3.13063424,86.89,86.855,8.668601]
[1773489362908,9.56822836,86.889,86.855,8.668601]
[1773489363106,9.56822836,86.888,86.855,8.668601]
[1773489363307,9.56822836,86.887,86.855,8.668601]
[1773489363504,3.13063424,86.89,86.855,8.668601]
[1773489363809,9.57370642,86.889,86.855,8.668601]
[1773489364010,9.57370642,86.888,86.855,8.668601]
[1773489364212,9.57370642,86.887,86.855,8.668601]
[1773489364408,9.57370642,86.886,86.855,8.668601]
[1773489364608,9.57370642,86.885,86.855,8.668601]
[1773489364811,10.355,86.897,86.855,8.668601]
[1773489365010,9.57751418,86.896,86.855,8.668601]
[1773489365204,9.57751418,86.895,86.855,8.668601]
[1773489365406,9.57751418,86.894,86.855,8.668601]
[1773489365607,9.57751418,86.893,86.855,8.668601]
[1773489365811,9.57751418,86.892,86.855,8.668601]
[1773489366012,9.57751418,86.891,86.855,8.668601]
[1773489366207,9.57751418,86.89,86.855,8.668601]
[1773489366413,9.57751418,86.889,86.855,8.668601]
[1773489366611,9.57751418,86.888,86.855,8.668601]
[1773489366809,9.57751418,86.887,86.855,8.668601]
[1773489367010,9.57751418,86.886,86.855,8.668601]
[1773489367211,9.57751418,86.885,86.855,8.668601]
[1773489367408,13.48563424,86.9,86.855,8.668601]
[1773489367608,9.58188354,86.899,86.855,8.668601]
[1773489367911,9.58188354,86.898,86.855,8.668601]
[1773489368110,9.58188354,86.897,86.855,8.668601]
[1773489368416,9.58188354,86.896,86.855,8.668601]
[1773489368612,13.48563424,86.9,86.855,8.668601]
[1773489368613,9.58188354,86.895,86.855,8.668601]
[1773489368816,9.58188354,86.894,86.855,8.668601]
[1773489369023,9.58188354,86.893,86.855,8.668601]
[1773489369220,9.58188354,86.892,86.855,8.668601]
[1773489369415,9.58188354,86.891,86.855,8.668601]
[1773489369621,9.58188354,86.89,86.855,8.668601]
[1773489369820,9.58188354,86.889,86.855,8.668601]
[1773489370020,9.58188354,86.888,86.855,8.668601]
[1773489370322,9.58188354,86.887,86.855,8.668601]
[1773489370620,9.58188354,86.886,86.855,8.668601]
[1773489370926,9.58188354,86.885,86.855,8.668601]
[1773489371119,9.58188354,86.884,86.855,8.668601]
[1773489371325,13.48563424,86.9,86.855,8.668601]
[1773489371526,10.355,86.898,86.855,8.668601]
[1773489371725,9.5831569,86.897,86.855,8.668601]
[1773489371929,9.5831569,86.896,86.855,8.668601]
[1773489372227,9.5831569,86.895,86.855,8.668601]
[1773489372429,9.5831569,86.894,86.857,8.62169886]
[1773489372624,9.5831569,86.893,86.857,8.62169886]
[1773489372829,9.5831569,86.892,86.857,8.62169886]
[1773489373029,9.5831569,86.891,86.859,8.61853859]
[1773489373329,9.5831569,86.89,86.859,8.61853859]
[1773489373530,9.5831569,86.889,86.859,8.61853859]
[1773489373831,10.354,86.906,86.859,8.61853859]
[1773489374024,9.58324145,86.905,86.859,8.61853859]
[1773489374225,9.58324145,86.904,86.859,8.61853859]
[1773489374431,9.58324145,86.903,86.859,8.61853859]
[1773489374630,9.58324145,86.902,86.859,8.61853859]
[1773489374834,9.58324145,86.901,86.859,8.61853859]
[1773489375035,9.58324145,86.9,86.859,8.61853859]
[1773489375334,9.58324145,86.899,86.859,8.61853859]
[1773489375529,9.58324145,86.898,86.859,8.61853859]
[1773489375730,9.58324145,86.897,86.859,8.61853859]
[1773489375928,9.58324145,86.896,86.859,8.61853859]
[1773489376226,9.58324145,86.895,86.859,8.61853859]
[1773489376426,9.58324145,86.894,86.859,8.61853859]
[1773489376728,9.58324145,86.893,86.859,8.61853859]
[1773489376923,9.58324145,86.892,86.859,8.61853859]
[1773489377125,10.354,86.906,86.859,8.61853859]
[1773489377126,9.58324145,86.891,86.859,8.61853859]
[1773489377322,10.354,86.906,86.859,8.61853859]
[1773489377525,9.47896111,86.905,86.859,8.61853859]
[1773489377729,9.47896111,86.904,86.859,8.61853859]
[1773489377928,9.47896111,86.903,86.859,8.61853859]
[1773489378128,9.47896111,86.902,86.859,8.61853859]
[1773489378326,9.47896111,86.901,86.859,8.61853859]
[1773489378529,9.47896111,86.9,86.859,8.61853859]
[1773489378732,9.47896111,86.899,86.859,8.61853859]
[1773489378933,9.47896111,86.898,86.859,8.61853859]
[1773489379235,9.47896111,86.897,86.859,8.61853859]
[1773489379436,9.47896111,86.896,86.859,8.61853859]
[1773489379637,9.47896111,86.895,86.859,8.61853859]
[1773489379837,9.47896111,86.894,86.859,8.61853859]
[1773489380034,9.47896111,86.893,86.859,8.61853859]
[1773489380339,9.47896111,86.892,86.859,8.61853859]
[1773489380534,9.47896111,86.891,86.859,8.61853859]
[1773489380735,9.47896111,86.89,86.859,8.61853859]
[1773489380940,9.47896111,86.889,86.859,8.61853859]
[1773489381240,9.48314662,86.888,86.859,8.61853859]
[1773489381532,3.13063424,86.9,86.859,8.61853859]
[1773489381731,9.48339333,86.899,86.859,8.61853859]
[1773489381931,9.48339333,86.898,86.859,8.61853859]
[1773489382131,3.13063424,86.9,86.859,8.61853859]
[1773489382132,9.48339333,86.897,86.859,8.61853859]
[1773489382343,9.48339333,86.896,86.859,8.61853859]
[1773489382637,9.48339333,86.895,86.859,8.61853859]
[1773489382829,9.48339333,86.894,86.859,8.61853859]
[1773489383136,9.48339333,86.893,86.859,8.61853859]
[1773489383332,9.48339333,86.892,86.859,8.61853859]
[1773489383534,9.48339333,86.891,86.859,8.61853859]
[1773489383839,9.48339333,86.89,86.859,8.61853859]
[1773489384039,9.48339333,86.889,86.859,8.61853859]
[1773489384237,9.48339333,86.888,86.859,8.61853859]
[1773489384434,9.48339333,86.887,86.859,8.61853859]
[1773489384641,3.13063424,86.9,86.859,8.61853859]
[1773489384842,9.48685988,86.899,86.859,8.61853859]
[1773489385042,9.48685988,86.898,86.859,8.61853859]
[1773489385244,9.48685988,86.897,86.859,8.61853859]
[1773489385442,9.48685988,86.896,86.859,8.61853859]
[1773489385642,9.48685988,86.895,86.859,8.61853859]
[1773489385839,9.48685988,86.894,86.859,8.61853859]
[1773489386143,10.354,86.906,86.859,8.61853859]
[1773489386144,9.48685988,86.893,86.859,8.61853859]
[1773489386346,9.48685988,86.892,86.859,8.61853859]
[1773489386544,10.354,86.906,86.859,8.61853859]
[1773489386745,9.48726788,86.905,86.859,8.61853859]
[1773489386941,10.354,86.906,86.859,8.61853859]
[1773489386942,9.48726788,86.904,86.859,8.61853859]
[1773489387143,9.48726788,86.903,86.859,8.61853859]
[1773489387342,9.48726788,86.902,86.859,8.61853859]
[1773489387540,9.48726788,86.901,86.859,8.61853859]
[1773489387740,9.48726788,86.9,86.859,8.61853859]
[1773489387944,9.48726788,86.899,86.859,8.61853859]
[1773489388149,10.354,86.906,86.859,8.61853859]
[1773489388446,9.39852176,86.905,86.859,8.61853859]
[1773489388647,9.39852176,86.904,86.859,8.61853859]
[1773489388844,3.13063424,86.93,86.871,8.63169172]
[1773489389044,9.39725526,86.929,86.871,8.63169172]
[1773489389242,9.39725526,86.928,86.871,8.63169172]
[1773489389444,9.39725526,86.927,86.871,8.63169172]
[1773489389639,3.13063424,86.92,86.861,8.63003139]
[1773489389845,3.13063424,86.91,86.861,8.63003139]
[1773489390746,3.13063424,86.91,86.87,8.61528601]
[1773489391337,9.30301525,86.909,86.87,8.61528601]
[1773489391544,9.30301525,86.908,86.87,8.61528601]
[1773489391745,3.13063424,86.91,86.87,8.61528601]
[1773489391944,9.30301525,86.909,86.87,8.61528601]
[1773489392144,9.30301525,86.908,86.87,8.61528601]
[1773489392444,3.13063424,86.91,86.87,8.61528601]
[1773489392646,9.30287995,86.909,86.87,8.61528601]
[1773489392843,9.30287995,86.908,86.87,8.61528601]
[1773489393143,3.13063424,86.91,86.87,8.61528601]
[1773489393348,9.30233459,86.909,86.87,8.61528601]
[1773489393647,9.30233459,86.908,86.87,8.61528601]
[1773489393841,10.353,86.916,86.87,8.61528601]
[1773489394039,10.353,86.912,86.87,8.61528601]
[1773489394243,9.30233459,86.911,86.87,8.61528601]
[1773489394449,9.30233459,86.91,86.87,8.61528601]
[1773489394644,9.30233459,86.909,86.87,8.61528601]
[1773489394842,9.30233459,86.908,86.87,8.61528601]
[1773489395043,10.353,86.912,86.87,8.61528601]
[1773489395245,9.3018141,86.911,86.87,8.61528601]
[1773489395441,9.3018141,86.91,86.87,8.61528601]
[1773489395643,9.3018141,86.909,86.87,8.61528601]
[1773489395845,9.3018141,86.908,86.87,8.61528601]
[1773489396053,10.353,86.912,86.87,8.61528601]
[1773489396247,9.30125025,86.911,86.87,8.61528601]
[1773489396447,9.30125025,86.91,86.87,8.61528601]
[1773489396649,9.30125025,86.909,86.87,8.61528601]
[1773489396849,9.30125025,86.908,86.87,8.61528601]
[1773489397051,10.353,86.912,86.87,8.61528601]
[1773489397251,9.30077192,86.911,86.87,8.61528601]
[1773489397451,9.30077192,86.91,86.87,8.61528601]
[1773489397651,9.30077192,86.909,86.87,8.61528601]
[1773489397852,10.353,86.912,86.87,8.61528601]
[1773489398354,9.2999832,86.911,86.87,8.61528601]
[1773489398552,9.2999832,86.91,86.87,8.61528601]
[1773489398751,9.2999832,86.909,86.87,8.61528601]
[1773489398953,9.2999832,86.908,86.87,8.61528601]
[1773489399156,10.353,86.912,86.87,8.61528601]
[1773489399356,9.29931916,86.911,86.87,8.61528601]
[1773489399556,9.29931916,86.91,86.87,8.61528601]
[1773489399854,9.29931916,86.909,86.87,8.61528601]
[1773489400155,9.29931916,86.908,86.87,8.61528601]
[1773489400354,10.353,86.912,86.87,8.61528601]
[1773489400555,9.29815032,86.911,86.87,8.61528601]
[1773489400756,9.29815032,86.91,86.87,8.61528601]
[1773489400952,9.29815032,86.909,86.87,8.61528601]
[1773489401153,10.353,86.912,86.87,8.61528601]
[1773489401353,3.12817077,86.91,86.87,8.61528601]
[1773489401554,9.2976654,86.909,86.87,8.61528601]
[1773489401754,9.2976654,86.908,86.87,8.61528601]
[1773489401954,3.12817077,86.91,86.87,8.61528601]
[1773489402155,9.29775782,86.909,86.87,8.61528601]
[1773489402354,9.29775782,86.908,86.87,8.61528601]
[1773489402549,3.12817077,86.91,86.87,8.61528601]
[1773489402757,9.29733302,86.909,86.87,8.61528601]
[1773489402958,3.12817077,86.91,86.87,8.61528601]
[1773489403162,9.297333,86.909,86.87,8.61528601]
[1773489403358,3.12817077,86.91,86.87,8.61528601]
[1773489403557,9.29700624,86.909,86.87,8.61528601]
[1773489403761,3.12817077,86.91,86.87,8.61528601]
[1773489403958,9.29700624,86.909,86.87,8.61528601]
[1773489404263,9.29700624,86.908,86.87,8.61528601]
[1773489404463,10.354,86.908,86.87,8.61528601]
[1773489404859,9.29771384,86.907,86.87,8.61528601]
[1773489405058,9.29771384,86.906,86.87,8.61528601]
[1773489405266,9.29771384,86.905,86.87,8.61528601]
[1773489405563,9.29771384,86.904,86.87,8.61528601]
[1773489405765,9.29771384,86.903,86.87,8.61528601]
[1773489405962,10.354,86.908,86.87,8.61528601]
[1773489406161,9.29104538,86.907,86.87,8.61528601]
[1773489406462,9.29104538,86.906,86.87,8.61528601]
[1773489406662,9.29104538,86.905,86.87,8.61528601]
[1773489406863,9.29104538,86.904,86.87,8.61528601]
[1773489407066,9.29104538,86.903,86.87,8.61528601]
[1773489407256,10.354,86.908,86.87,8.61528601]
[1773489407460,9.29165209,86.907,86.87,8.61528601]
[1773489407657,9.29165209,86.906,86.87,8.61528601]
[1773489407864,9.29165209,86.905,86.87,8.61528601]
[1773489408058,9.29165209,86.904,86.87,8.61528601]
[1773489408265,9.29165209,86.903,86.87,8.61528601]
[1773489408465,10.354,86.908,86.87,8.61528601]
[1773489408665,9.29206875,86.907,86.87,8.61528601]
[1773489408866,9.29206875,86.906,86.87,8.61528601]
[1773489409068,9.29206875,86.905,86.87,8.61528601]
[1773489409367,9.29206875,86.904,86.87,8.61528601]
[1773489409667,10.354,86.908,86.87,8.61528601]
[1773489409867,9.29235793,86.907,86.87,8.61528601]
[1773489410065,9.29235793,86.906,86.87,8.61528601]
[1773489410265,9.29235793,86.905,86.87,8.61528601]
[1773489410464,9.29235793,86.904,86.87,8.61528601]
[1773489410666,10.354,86.908,86.87,8.61528601]
[1773489410868,9.29282609,86.907,86.87,8.61528601]
[1773489411164,9.29282609,86.906,86.87,8.61528601]
[1773489411366,9.29282609,86.905,86.87,8.61528601]
[1773489411566,9.29282609,86.904,86.87,8.61528601]
[1773489411768,10.354,86.908,86.87,8.61528601]
[1773489411965,9.29337039,86.907,86.87,8.61528601]
[1773489412164,9.29337039,86.906,86.87,8.61528601]
[1773489412362,9.29337039,86.905,86.87,8.61528601]
[1773489412568,9.29337039,86.904,86.87,8.61528601]
[1773489412775,10.354,86.908,86.87,8.61528601]
[1773489412975,9.29389826,86.907,86.87,8.61528601]
[1773489413175,9.29389826,86.906,86.87,8.61528601]
[1773489413473,9.29389826,86.905,86.87,8.61528601]
[1773489413673,9.29389826,86.904,86.87,8.61528601]
[1773489413972,9.29389826,86.903,86.87,8.61528601]
[1773489414177,10.354,86.908,86.87,8.61528601]
[1773489414365,9.29532012,86.907,86.87,8.61528601]
[1773489414570,9.29532012,86.906,86.87,8.61528601]
[1773489414874,9.29532012,86.905,86.87,8.61528601]
[1773489415066,9.29532012,86.904,86.87,8.61528601]
[1773489415270,9.29532012,86.903,86.87,8.61528601]
[1773489415470,10.354,86.908,86.87,8.61528601]
[1773489415670,9.29616415,86.907,86.87,8.61528601]
[1773489415871,9.29616415,86.906,86.87,8.61528601]
[1773489416073,9.29616415,86.905,86.87,8.61528601]
[1773489416275,9.29616415,86.904,86.87,8.61528601]
[1773489416573,10.354,86.908,86.87,8.61528601]
[1773489416574,9.29616415,86.903,86.87,8.61528601]
[1773489416772,9.29616415,86.902,86.87,8.61528601]
[1773489416976,10.354,86.908,86.87,8.61528601]
[1773489417170,9.29710298,86.907,86.87,8.61528601]
[1773489417375,9.29710298,86.906,86.87,8.61528601]
[1773489417574,9.29710298,86.905,86.87,8.61528601]
[1773489417776,9.29710298,86.904,86.87,8.61528601]
[1773489417976,9.29710298,86.903,86.87,8.61528601]
[1773489418178,9.29710298,86.902,86.87,8.61528601]
[1773489418377,10.354,86.908,86.87,8.61528601]
[1773489418677,9.29829214,86.907,86.87,8.61528601]
[1773489418979,9.29829214,86.906,86.87,8.61528601]
[1773489419181,9.29829214,86.905,86.87,8.61528601]
[1773489419381,9.29829214,86.904,86.87,8.61528601]
[1773489419680,9.29829214,86.903,86.87,8.61528601]
[1773489419881,9.29829214,86.902,86.87,8.61528601]
[1773489420080,10.354,86.908,86.87,8.61528601]
[1773489420277,9.29869851,86.907,86.87,8.61528601]
[1773489420580,9.29869851,86.906,86.87,8.61528601]
[1773489420878,9.29869851,86.905,86.87,8.61528601]
[1773489421178,9.29869851,86.904,86.87,8.61528601]
[1773489421373,9.29869851,86.903,86.87,8.61528601]
[1773489421570,9.29869851,86.902,86.87,8.61528601]
[1773489421780,10.354,86.908,86.87,8.61528601]
[1773489422078,9.29944854,86.907,86.87,8.61528601]
[1773489422271,10.354,86.908,86.87,8.61528601]
[1773489422272,9.29944854,86.906,86.87,8.61528601]
[1773489422470,9.29944854,86.905,86.87,8.61528601]
[1773489422671,9.29944854,86.904,86.87,8.61528601]
[1773489422870,9.29944854,86.903,86.87,8.61528601]
[1773489423080,9.29944854,86.902,86.87,8.61528601]
[1773489423281,9.29944854,86.901,86.87,8.61528601]
[1773489423482,10.354,86.908,86.87,8.61528601]
[1773489423680,9.30057165,86.907,86.87,8.61528601]
[1773489423879,9.30057165,86.906,86.87,8.61528601]
[1773489424176,9.30057165,86.905,86.87,8.61528601]
[1773489424482,9.30057165,86.904,86.87,8.61528601]
[1773489424781,9.30057165,86.903,86.87,8.61528601]
[1773489424981,9.30057165,86.902,86.87,8.61528601]
[1773489425175,9.30057165,86.901,86.87,8.61528601]
[1773489425378,9.30057165,86.9,86.87,8.61528601]
[1773489425579,10.354,86.908,86.87,8.61528601]
[1773489425781,9.30201588,86.907,86.87,8.61528601]
[1773489425976,9.30201588,86.906,86.87,8.61528601]
[1773489426174,9.30201588,86.905,86.87,8.61528601]
[1773489426384,9.30201588,86.904,86.87,8.61528601]
[1773489426582,9.30201588,86.903,86.87,8.61528601]
[1773489426784,9.30201588,86.902,86.87,8.61528601]
[1773489426986,9.30201588,86.901,86.87,8.61528601]
[1773489427185,9.30201588,86.9,86.87,8.61528601]
[1773489427486,9.30201588,86.899,86.87,8.61528601]
[1773489427687,10.354,86.908,86.87,8.61528601]
[1773489427886,9.30355098,86.907,86.87,8.61528601]
[1773489428186,9.30355098,86.906,86.87,8.61528601]
[1773489428386,9.30355098,86.905,86.87,8.61528601]
[1773489428587,9.30355098,86.904,86.87,8.61528601]
[1773489428887,9.30355098,86.903,86.87,8.61528601]
[1773489429086,9.30355098,86.902,86.87,8.61528601]
[1773489429287,9.30355098,86.901,86.87,8.61528601]
[1773489429488,9.30355098,86.9,86.87,8.61528601]
[1773489429689,9.30355098,86.899,86.87,8.61528601]
[1773489429883,10.354,86.908,86.87,8.61528601]
[1773489430086,9.30561335,86.907,86.87,8.61528601]
[1773489430286,9.30561335,86.906,86.87,8.61528601]
[1773489430486,9.30561335,86.905,86.87,8.61528601]
[1773489430784,9.30561335,86.904,86.87,8.61528601]
[1773489430985,9.30561335,86.903,86.87,8.61528601]
[1773489431188,9.30561335,86.902,86.87,8.61528601]
[1773489431488,9.30561335,86.901,86.87,8.61528601]
[1773489431687,9.30561335,86.9,86.87,8.61528601]
[1773489431887,9.30561335,86.899,86.87,8.61528601]
[1773489432090,10.354,86.908,86.87,8.61528601]
[1773489432290,9.3073566,86.907,86.87,8.61528601]
[1773489432485,9.3073566,86.906,86.87,8.61528601]
[1773489432685,9.3073566,86.905,86.87,8.61528601]
[1773489432984,9.3073566,86.904,86.87,8.61528601]